[Event "Titled Tuesday Blitz January 31 Late 2023"]
[White "Srbis, Jurica"]
[Black "Bayo Milagro, Alvaro"]
[WhiteFideId "14515555"]
[BlackFideId "22275240"]
[WhiteElo "2433"]
[BlackElo "2287"]
[Result "1-0"]
[Round "02"]
[TimeControl "180+2"]
[Date "2023.01.31"]
[WhiteClock "0:00:59"]
[BlackClock "0:00:38"]

1. e4 {[%clk 0:03:00]}  e5 {[%clk 0:02:59]} 2. Nf3 {[%clk 0:02:59]}  Nc6 {[%clk 0:03:00]} 3. Nc3 {[%clk 0:02:59]}  Nf6 {[%clk 0:02:59]} 4. d4 {[%clk 0:03:00]}  exd4 {[%clk 0:02:59]} 5. Nxd4 {[%clk 0:03:01]}  Bb4 {[%clk 0:02:59]} 6. Nxc6 {[%clk 0:03:01]}  bxc6 {[%clk 0:03:00]} 7. Bd3 {[%clk 0:03:01]}  d5 {[%clk 0:03:00]} 8. exd5 {[%clk 0:02:59]}  cxd5 {[%clk 0:03:01]} 9. O-O {[%clk 0:02:59]}  O-O {[%clk 0:03:02]} 10. h3 {[%clk 0:02:59]}  Re8 {[%clk 0:03:01]} 11. Qf3 {[%clk 0:02:59]}  c6 {[%clk 0:02:55]} 12. Bf4 {[%clk 0:02:57]}  Bd6 {[%clk 0:02:54]} 13. Ne2 {[%clk 0:02:57]}  Ne4 {[%clk 0:02:45]} 14. Rad1 {[%clk 0:02:53]}  Bd7 {[%clk 0:02:37]} 15. Bxe4 {[%clk 0:02:41]}  dxe4 {[%clk 0:02:37]} 16. Qg3 {[%clk 0:02:35]}  Bxf4 {[%clk 0:02:37]} 17. Nxf4 {[%clk 0:02:34]}  Qc7 {[%clk 0:02:25]} 18. Rd4 {[%clk 0:01:57]}  Bf5 {[%clk 0:02:23]} 19. Rfd1 {[%clk 0:01:53]}  Rab8 {[%clk 0:02:05]} 20. b3 {[%clk 0:01:43]}  Rbd8 {[%clk 0:01:58]} 21. Rxd8 {[%clk 0:01:01]}  Rxd8 {[%clk 0:01:57]} 22. Nd5 {[%clk 0:01:01]}  Qa5 {[%clk 0:00:40]} 23. Ne7+ {[%clk 0:01:00]}  Kf8 {[%clk 0:00:40]} 24. Rxd8+ {[%clk 0:01:00]}  Kxe7 {[%clk 0:00:38]} 25. Qd6# {[%clk 0:00:59]} 1-0


[Site "https://www.chess.com"]

[Event "Titled Tuesday Blitz January 31 Late 2023"]
[White "Boros, Denes"]
[Black "Migot, Tangi"]
[WhiteFideId "722340"]
[BlackFideId "662445"]
[WhiteElo "2406"]
[BlackElo "2373"]
[Result "0-1"]
[Round "02"]
[TimeControl "180+2"]
[Date "2023.01.31"]
[WhiteClock "0:02:05"]
[BlackClock "0:00:41"]

1. d4 {[%clk 0:03:00]}  Nf6 {[%clk 0:02:58]} 2. Nc3 {[%clk 0:03:01]}  g6 {[%clk 0:02:58]} 3. e4 {[%clk 0:03:01]}  d6 {[%clk 0:02:58]} 4. g4 {[%clk 0:03:00]}  Bxg4 {[%clk 0:02:57]} 5. f3 {[%clk 0:03:00]}  Bc8 {[%clk 0:02:52]} 6. Nge2 {[%clk 0:03:00]}  Nbd7 {[%clk 0:02:49]} 7. Be3 {[%clk 0:02:59]}  b5 {[%clk 0:02:46]} 8. Nf4 {[%clk 0:02:57]}  b4 {[%clk 0:02:43]} 9. Nce2 {[%clk 0:02:57]}  Ba6 {[%clk 0:02:35]} 10. Qd2 {[%clk 0:02:56]}  c5 {[%clk 0:02:32]} 11. dxc5 {[%clk 0:02:51]}  Nxc5 {[%clk 0:02:31]} 12. h4 {[%clk 0:02:40]}  h5 {[%clk 0:02:22]} 13. O-O-O {[%clk 0:02:35]}  Qa5 {[%clk 0:02:14]} 14. Kb1 {[%clk 0:02:35]}  Bg7 {[%clk 0:02:04]} 15. Rg1 {[%clk 0:02:35]}  Na4 {[%clk 0:01:46]} 16. Nd4 {[%clk 0:02:35]}  Bxf1 {[%clk 0:01:22]} 17. Rdxf1 {[%clk 0:02:36]}  Rb8 {[%clk 0:01:12]} 18. Nb3 {[%clk 0:02:33]}  Qb5 {[%clk 0:01:11]} 19. Rg5 {[%clk 0:02:28]}  Qxf1+ {[%clk 0:01:07]} 20. Nc1 {[%clk 0:02:25]}  O-O {[%clk 0:01:03]} 21. Nd3 {[%clk 0:02:23]}  Nh7 {[%clk 0:00:58]} 22. Rg3 {[%clk 0:02:19]}  Nc3+ {[%clk 0:00:54]} 23. Ka1 {[%clk 0:02:20]}  Qd1 {[%clk 0:00:52]} 24. Qg2 {[%clk 0:02:17]}  b3 {[%clk 0:00:51]} 25. cxb3 {[%clk 0:02:14]}  Rfc8 {[%clk 0:00:47]} 26. bxc3 {[%clk 0:02:13]}  Rxc3 {[%clk 0:00:45]} 27. Kb1 {[%clk 0:02:13]}  Rxd3 {[%clk 0:00:41]} 28. Rxg6 {[%clk 0:02:05]} 0-1


[Site "https://www.chess.com"]

[Event "Titled Tuesday Blitz January 31 Late 2023"]
[White "Paichadze, Luka"]
[Black "Reprintsev, Alexander"]
[WhiteFideId "13602934"]
[BlackFideId "14100541"]
[WhiteElo "2515"]
[BlackElo "2253"]
[Result "1-0"]
[Round "02"]
[TimeControl "180+2"]
[Date "2023.01.31"]
[WhiteClock "0:00:14"]
[BlackClock "0:00:02"]

1. e4 {[%clk 0:03:00]}  d5 {[%clk 0:02:39]} 2. exd5 {[%clk 0:02:54]}  Qxd5 {[%clk 0:02:38]} 3. Nc3 {[%clk 0:02:54]}  Qa5 {[%clk 0:02:37]} 4. g3 {[%clk 0:02:52]}  Nc6 {[%clk 0:02:36]} 5. Bg2 {[%clk 0:02:52]}  Nf6 {[%clk 0:02:36]} 6. Nf3 {[%clk 0:02:50]}  Bg4 {[%clk 0:02:33]} 7. O-O {[%clk 0:02:46]}  Qh5 {[%clk 0:02:31]} 8. Re1 {[%clk 0:02:26]}  Nd4 {[%clk 0:02:18]} 9. Re3 {[%clk 0:02:25]}  O-O-O {[%clk 0:02:16]} 10. d3 {[%clk 0:02:01]}  e6 {[%clk 0:02:15]} 11. h3 {[%clk 0:01:27]}  Bxh3 {[%clk 0:02:14]} 12. Nxd4 {[%clk 0:01:21]}  Qxd1+ {[%clk 0:02:03]} 13. Nxd1 {[%clk 0:01:22]}  Bxg2 {[%clk 0:02:03]} 14. Nxe6 {[%clk 0:01:23]}  Re8 {[%clk 0:01:37]} 15. Kxg2 {[%clk 0:01:09]}  Rxe6 {[%clk 0:01:37]} 16. Rxe6 {[%clk 0:01:07]}  fxe6 {[%clk 0:01:37]} 17. Nc3 {[%clk 0:01:03]}  Bb4 {[%clk 0:01:31]} 18. Bd2 {[%clk 0:01:00]}  Kd7 {[%clk 0:01:28]} 19. a3 {[%clk 0:00:57]}  Ba5 {[%clk 0:01:26]} 20. b4 {[%clk 0:00:56]}  Bb6 {[%clk 0:01:26]} 21. Re1 {[%clk 0:00:55]}  a5 {[%clk 0:01:20]} 22. b5 {[%clk 0:00:54]}  Bd4 {[%clk 0:01:06]} 23. a4 {[%clk 0:00:52]}  b6 {[%clk 0:00:59]} 24. Ne2 {[%clk 0:00:50]}  Bc5 {[%clk 0:00:59]} 25. Nf4 {[%clk 0:00:44]}  Re8 {[%clk 0:00:57]} 26. Bc3 {[%clk 0:00:41]}  Bd6 {[%clk 0:00:52]} 27. Ne2 {[%clk 0:00:30]}  Bb4 {[%clk 0:00:42]} 28. Rh1 {[%clk 0:00:27]}  Bxc3 {[%clk 0:00:42]} 29. Nxc3 {[%clk 0:00:28]}  h6 {[%clk 0:00:42]} 30. Rh4 {[%clk 0:00:27]}  Ke7 {[%clk 0:00:38]} 31. Rc4 {[%clk 0:00:26]}  Rc8 {[%clk 0:00:35]} 32. Ne2 {[%clk 0:00:26]}  e5 {[%clk 0:00:23]} 33. Nc3 {[%clk 0:00:26]}  Kd7 {[%clk 0:00:19]} 34. Rc6 {[%clk 0:00:25]}  Re8 {[%clk 0:00:18]} 35. f3 {[%clk 0:00:25]}  Re6 {[%clk 0:00:18]} 36. Rc4 {[%clk 0:00:25]}  c5 {[%clk 0:00:17]} 37. Rh4 {[%clk 0:00:18]}  Kd6 {[%clk 0:00:15]} 38. Kf2 {[%clk 0:00:18]}  Re7 {[%clk 0:00:15]} 39. Ke2 {[%clk 0:00:18]}  Rf7 {[%clk 0:00:15]} 40. Nd1 {[%clk 0:00:18]}  Nd5 {[%clk 0:00:15]} 41. Nb2 {[%clk 0:00:18]}  Kc7 {[%clk 0:00:12]} 42. Nc4 {[%clk 0:00:19]}  Nc3+ {[%clk 0:00:11]} 43. Kf2 {[%clk 0:00:17]}  Re7 {[%clk 0:00:11]} 44. Ne3 {[%clk 0:00:16]}  Kd7 {[%clk 0:00:10]} 45. Rc4 {[%clk 0:00:16]}  Na2 {[%clk 0:00:07]} 46. c3 {[%clk 0:00:16]}  Nc1 {[%clk 0:00:06]} 47. Nd5 {[%clk 0:00:15]}  Rf7 {[%clk 0:00:04]} 48. Ke3 {[%clk 0:00:14]}  Nxd3 {[%clk 0:00:04]} 49. Kxd3 {[%clk 0:00:14]}  Rxf3+ {[%clk 0:00:05]} 50. Ke4 {[%clk 0:00:15]}  Rxg3 {[%clk 0:00:05]} 51. Nxb6+ {[%clk 0:00:15]}  Ke6 {[%clk 0:00:05]} 52. Rxc5 {[%clk 0:00:15]}  Rg4+ {[%clk 0:00:05]} 53. Kf3 {[%clk 0:00:15]}  Rf4+ {[%clk 0:00:05]} 54. Kg3 {[%clk 0:00:15]}  h5 {[%clk 0:00:04]} 55. Rc6+ {[%clk 0:00:15]}  Kf5 {[%clk 0:00:04]} 56. Nd5 {[%clk 0:00:15]}  h4+ {[%clk 0:00:04]} 57. Kh3 {[%clk 0:00:16]}  Rxa4 {[%clk 0:00:04]} 58. b6 {[%clk 0:00:15]}  Ra3 {[%clk 0:00:04]} 59. b7 {[%clk 0:00:14]}  Rb3 {[%clk 0:00:04]} 60. Nb6 {[%clk 0:00:15]}  g5 {[%clk 0:00:02]} 61. b8=Q {[%clk 0:00:14]} 1-0


[Site "https://www.chess.com"]

[Event "Titled Tuesday Blitz January 31 Late 2023"]
[White "O`Gorman, Tom"]
[Black "Kilic, Eray"]
[WhiteFideId "2508249"]
[BlackFideId "44517173"]
[WhiteElo "2355"]
[BlackElo "2414"]
[Result "0-1"]
[Round "02"]
[TimeControl "180+2"]
[Date "2023.01.31"]
[WhiteClock "0:00:10"]
[BlackClock "0:01:57"]

1. d4 {[%clk 0:03:00]}  Nf6 {[%clk 0:03:00]} 2. c4 {[%clk 0:02:59]}  g6 {[%clk 0:03:00]} 3. Nf3 {[%clk 0:02:57]}  Bg7 {[%clk 0:02:59]} 4. g3 {[%clk 0:02:57]}  O-O {[%clk 0:02:59]} 5. Bg2 {[%clk 0:02:58]}  d6 {[%clk 0:02:59]} 6. O-O {[%clk 0:02:58]}  Nbd7 {[%clk 0:02:59]} 7. Nc3 {[%clk 0:02:57]}  e5 {[%clk 0:03:00]} 8. e4 {[%clk 0:02:58]}  exd4 {[%clk 0:03:00]} 9. Nxd4 {[%clk 0:02:57]}  Nc5 {[%clk 0:03:01]} 10. Re1 {[%clk 0:02:56]}  Re8 {[%clk 0:03:01]} 11. h3 {[%clk 0:02:54]}  Bd7 {[%clk 0:03:01]} 12. Nb3 {[%clk 0:02:43]}  Nxb3 {[%clk 0:02:56]} 13. axb3 {[%clk 0:02:44]}  Bc6 {[%clk 0:02:54]} 14. Bf4 {[%clk 0:02:25]}  a6 {[%clk 0:02:51]} 15. Qd2 {[%clk 0:02:23]}  Qd7 {[%clk 0:02:46]} 16. Rad1 {[%clk 0:02:17]}  Re7 {[%clk 0:02:45]} 17. Bg5 {[%clk 0:01:46]}  Rae8 {[%clk 0:02:43]} 18. Qf4 {[%clk 0:01:35]}  Re6 {[%clk 0:02:23]} 19. h4 {[%clk 0:01:28]}  Nxe4 {[%clk 0:02:03]} 20. Nxe4 {[%clk 0:00:36]}  f5 {[%clk 0:02:02]} 21. f3 {[%clk 0:00:30]}  Qf7 {[%clk 0:02:01]} 22. Bh3 {[%clk 0:00:25]}  Re5 {[%clk 0:02:02]} 23. Qe3 {[%clk 0:00:10]}  fxe4 {[%clk 0:02:01]} 24. f4 {[%clk 0:00:11]}  Rc5 {[%clk 0:02:01]} 25. Rf1 {[%clk 0:00:11]}  h6 {[%clk 0:01:57]} 26. f5 {[%clk 0:00:10]}  hxg5 {[%clk 0:01:57]} 27. fxg6 {[%clk 0:00:10]}  Qxg6 {[%clk 0:01:57]} 0-1


[Site "https://www.chess.com"]

[Event "Titled Tuesday Blitz January 31 Late 2023"]
[White "Bartel, Mateusz"]
[Black "Roux, Baptiste"]
[WhiteFideId "1112635"]
[BlackFideId "36017450"]
[WhiteElo "2609"]
[BlackElo "2300"]
[Result "1-0"]
[Round "02"]
[TimeControl "180+2"]
[Date "2023.01.31"]
[WhiteClock "0:00:13"]
[BlackClock "0:00:01"]

1. Nf3 {[%clk 0:03:00]}  d5 {[%clk 0:02:55]} 2. h3 {[%clk 0:02:58]}  b6 {[%clk 0:02:55]} 3. d4 {[%clk 0:02:58]}  Bb7 {[%clk 0:02:54]} 4. Bf4 {[%clk 0:02:58]}  Nf6 {[%clk 0:02:53]} 5. e3 {[%clk 0:02:59]}  e6 {[%clk 0:02:53]} 6. Nbd2 {[%clk 0:02:55]}  Bd6 {[%clk 0:02:50]} 7. Ne5 {[%clk 0:02:55]}  O-O {[%clk 0:02:34]} 8. Bd3 {[%clk 0:02:52]}  c5 {[%clk 0:02:31]} 9. Qf3 {[%clk 0:02:49]}  c4 {[%clk 0:02:30]} 10. Bxc4 {[%clk 0:02:46]}  Ne4 {[%clk 0:02:09]} 11. Bd3 {[%clk 0:02:30]}  f5 {[%clk 0:02:04]} 12. g4 {[%clk 0:02:16]}  Nc6 {[%clk 0:01:58]} 13. Nxc6 {[%clk 0:02:14]}  Bxc6 {[%clk 0:01:56]} 14. O-O-O {[%clk 0:01:32]}  Rc8 {[%clk 0:01:53]} 15. gxf5 {[%clk 0:01:21]}  exf5 {[%clk 0:01:52]} 16. Rhg1 {[%clk 0:01:18]}  Rf7 {[%clk 0:01:34]} 17. Kb1 {[%clk 0:01:12]}  Bb7 {[%clk 0:01:22]} 18. Bxd6 {[%clk 0:01:07]}  Qxd6 {[%clk 0:01:21]} 19. Qg2 {[%clk 0:01:07]}  Qb4 {[%clk 0:01:12]} 20. Nb3 {[%clk 0:01:06]}  a5 {[%clk 0:01:04]} 21. a3 {[%clk 0:01:01]}  Qe7 {[%clk 0:00:59]} 22. f3 {[%clk 0:01:01]}  Nd6 {[%clk 0:00:59]} 23. Qg5 {[%clk 0:01:00]}  Re8 {[%clk 0:00:52]} 24. Qf4 {[%clk 0:00:56]}  Nc4 {[%clk 0:00:41]} 25. Rde1 {[%clk 0:00:51]}  a4 {[%clk 0:00:20]} 26. Nc1 {[%clk 0:00:49]}  Ba6 {[%clk 0:00:19]} 27. Bxc4 {[%clk 0:00:48]}  Bxc4 {[%clk 0:00:19]} 28. h4 {[%clk 0:00:35]}  b5 {[%clk 0:00:19]} 29. c3 {[%clk 0:00:35]}  Kh8 {[%clk 0:00:15]} 30. h5 {[%clk 0:00:35]}  Rf6 {[%clk 0:00:15]} 31. Na2 {[%clk 0:00:31]}  Bxa2+ {[%clk 0:00:14]} 32. Kxa2 {[%clk 0:00:31]}  Qd7 {[%clk 0:00:10]} 33. Rg5 {[%clk 0:00:30]}  Ref8 {[%clk 0:00:08]} 34. Reg1 {[%clk 0:00:30]}  R6f7 {[%clk 0:00:08]} 35. Rg6 {[%clk 0:00:27]}  Qc8 {[%clk 0:00:03]} 36. Ka1 {[%clk 0:00:20]}  Qc4 {[%clk 0:00:03]} 37. Qe5 {[%clk 0:00:21]}  Qe2 {[%clk 0:00:03]} 38. Rxg7 {[%clk 0:00:20]}  Rf6 {[%clk 0:00:02]} 39. R7g3 {[%clk 0:00:13]}  Qc4 {[%clk 0:00:01]} 40. Qxf6+ {[%clk 0:00:13]} 1-0


[Site "https://www.chess.com"]

[Event "Titled Tuesday Blitz January 31 Late 2023"]
[White "Avila Pavas, Santiago"]
[Black "Dobrikov, Marco"]
[WhiteFideId "4437128"]
[BlackFideId "12950378"]
[WhiteElo "2522"]
[BlackElo "2269"]
[Result "1-0"]
[Round "02"]
[TimeControl "180+2"]
[Date "2023.01.31"]
[WhiteClock "0:01:38"]
[BlackClock "0:00:59"]

1. d4 {[%clk 0:03:00]}  g6 {[%clk 0:02:59]} 2. e4 {[%clk 0:03:00]}  Bg7 {[%clk 0:02:57]} 3. Nc3 {[%clk 0:03:01]}  d6 {[%clk 0:02:57]} 4. Be3 {[%clk 0:03:01]}  a6 {[%clk 0:02:57]} 5. Qd2 {[%clk 0:03:01]}  b5 {[%clk 0:02:57]} 6. h4 {[%clk 0:03:01]}  h5 {[%clk 0:02:57]} 7. f3 {[%clk 0:03:00]}  Nd7 {[%clk 0:02:57]} 8. Nh3 {[%clk 0:03:01]}  e6 {[%clk 0:02:51]} 9. Ng5 {[%clk 0:03:01]}  Nb6 {[%clk 0:02:44]} 10. O-O-O {[%clk 0:03:00]}  Ne7 {[%clk 0:02:44]} 11. g4 {[%clk 0:02:22]}  b4 {[%clk 0:02:23]} 12. Nb1 {[%clk 0:02:23]}  a5 {[%clk 0:02:23]} 13. gxh5 {[%clk 0:02:23]}  Rxh5 {[%clk 0:02:22]} 14. b3 {[%clk 0:02:21]}  Ba6 {[%clk 0:02:20]} 15. Bh3 {[%clk 0:02:09]}  d5 {[%clk 0:01:58]} 16. Bg4 {[%clk 0:02:06]}  Rh8 {[%clk 0:01:57]} 17. h5 {[%clk 0:02:04]}  Qd7 {[%clk 0:01:19]} 18. hxg6 {[%clk 0:02:04]}  Nxg6 {[%clk 0:01:18]} 19. Rxh8+ {[%clk 0:02:04]}  Bxh8 {[%clk 0:01:17]} 20. Rh1 {[%clk 0:02:05]}  O-O-O {[%clk 0:01:15]} 21. Rh7 {[%clk 0:02:05]}  Rf8 {[%clk 0:01:12]} 22. Nxe6 {[%clk 0:01:54]}  fxe6 {[%clk 0:01:08]} 23. Rxd7 {[%clk 0:01:54]}  Kxd7 {[%clk 0:01:08]} 24. Qh2 {[%clk 0:01:48]}  Ne7 {[%clk 0:01:02]} 25. Qh3 {[%clk 0:01:46]}  dxe4 {[%clk 0:00:59]} 26. Bxe6+ {[%clk 0:01:42]}  Kd8 {[%clk 0:00:59]} 27. Qh6 {[%clk 0:01:38]} 1-0


[Site "https://www.chess.com"]

[Event "Titled Tuesday Blitz January 31 Late 2023"]
[White "Karolczuk, Iwo"]
[Black "QuiesPrecatio"]
[WhiteFideId "21816972"]
[WhiteElo "2343"]
[BlackElo "2426"]
[Result "1-0"]
[Round "02"]
[TimeControl "180+2"]
[Date "2023.01.31"]
[WhiteClock "0:00:05"]
[BlackClock "0:00:02"]

1. e4 {[%clk 0:03:00]}  c6 {[%clk 0:02:53]} 2. d4 {[%clk 0:03:00]}  d5 {[%clk 0:02:53]} 3. f3 {[%clk 0:03:00]}  dxe4 {[%clk 0:02:53]} 4. fxe4 {[%clk 0:03:01]}  e5 {[%clk 0:02:53]} 5. Nf3 {[%clk 0:03:00]}  Bg4 {[%clk 0:02:54]} 6. Bc4 {[%clk 0:02:58]}  Nd7 {[%clk 0:02:54]} 7. c3 {[%clk 0:02:58]}  Bh5 {[%clk 0:02:54]} 8. O-O {[%clk 0:02:57]}  Ngf6 {[%clk 0:02:52]} 9. Bg5 {[%clk 0:02:47]}  Qc7 {[%clk 0:02:38]} 10. Qb3 {[%clk 0:02:43]}  b5 {[%clk 0:02:32]} 11. Bd3 {[%clk 0:02:40]}  Bd6 {[%clk 0:02:26]} 12. Nbd2 {[%clk 0:02:39]}  h6 {[%clk 0:02:21]} 13. Bh4 {[%clk 0:02:36]}  a6 {[%clk 0:02:12]} 14. a4 {[%clk 0:02:35]}  O-O {[%clk 0:02:08]} 15. Bg3 {[%clk 0:02:19]}  Bg6 {[%clk 0:01:49]} 16. Rae1 {[%clk 0:02:07]}  Rfe8 {[%clk 0:01:38]} 17. Kh1 {[%clk 0:01:44]}  Rab8 {[%clk 0:01:18]} 18. Qa2 {[%clk 0:01:41]}  c5 {[%clk 0:01:15]} 19. Nh4 {[%clk 0:00:56]}  Bh7 {[%clk 0:01:13]} 20. axb5 {[%clk 0:00:49]}  axb5 {[%clk 0:01:14]} 21. d5 {[%clk 0:00:49]}  c4 {[%clk 0:01:11]} 22. Bc2 {[%clk 0:00:49]}  Nc5 {[%clk 0:00:53]} 23. Rxf6 {[%clk 0:00:46]}  gxf6 {[%clk 0:00:53]} 24. Rf1 {[%clk 0:00:44]}  Nd7 {[%clk 0:00:25]} 25. Qb1 {[%clk 0:00:42]}  Qc8 {[%clk 0:00:12]} 26. Qd1 {[%clk 0:00:40]}  Nf8 {[%clk 0:00:12]} 27. Nf5 {[%clk 0:00:30]}  Bxf5 {[%clk 0:00:11]} 28. Rxf5 {[%clk 0:00:31]}  Kh7 {[%clk 0:00:11]} 29. Rxf6 {[%clk 0:00:14]}  Qd7 {[%clk 0:00:11]} 30. Qf3 {[%clk 0:00:14]}  Rb7 {[%clk 0:00:09]} 31. Nf1 {[%clk 0:00:11]}  Ng6 {[%clk 0:00:09]} 32. Ne3 {[%clk 0:00:09]}  Bf8 {[%clk 0:00:10]} 33. Nf5 {[%clk 0:00:06]}  Bg7 {[%clk 0:00:10]} 34. Rd6 {[%clk 0:00:06]}  Qc8 {[%clk 0:00:06]} 35. h4 {[%clk 0:00:07]}  Rd7 {[%clk 0:00:04]} 36. Rc6 {[%clk 0:00:07]}  Qd8 {[%clk 0:00:04]} 37. Qg4 {[%clk 0:00:07]}  Rg8 {[%clk 0:00:02]} 38. h5 {[%clk 0:00:05]}  Nf8 {[%clk 0:00:02]} 39. Nxg7 {[%clk 0:00:05]}  Rxg7 {[%clk 0:00:03]} 40. Qf5+ {[%clk 0:00:05]}  Kh8 {[%clk 0:00:04]} 41. Rxh6+ {[%clk 0:00:05]}  Kg8 {[%clk 0:00:04]} 42. Bxe5 {[%clk 0:00:05]}  f6 {[%clk 0:00:02]} 43. Bxf6 {[%clk 0:00:04]}  Qe8 {[%clk 0:00:03]} 44. Bxg7 {[%clk 0:00:04]}  Rxg7 {[%clk 0:00:04]} 45. e5 {[%clk 0:00:04]}  Qf7 {[%clk 0:00:03]} 46. e6 {[%clk 0:00:04]}  Qxf5 {[%clk 0:00:03]} 47. Bxf5 {[%clk 0:00:05]}  Rg5 {[%clk 0:00:04]} 48. g4 {[%clk 0:00:04]}  Rg7 {[%clk 0:00:03]} 49. d6 {[%clk 0:00:04]}  Rg5 {[%clk 0:00:02]} 50. e7 {[%clk 0:00:05]} 1-0


[Site "https://www.chess.com"]

[Event "Titled Tuesday Blitz January 31 Late 2023"]
[White "Timmermans, Mark"]
[Black "Prydun, Andriy"]
[WhiteFideId "1026399"]
[BlackFideId "14145898"]
[WhiteElo "2392"]
[BlackElo "2134"]
[Result "0-1"]
[Round "02"]
[TimeControl "180+2"]
[Date "2023.01.31"]
[WhiteClock "0:00:21"]
[BlackClock "0:00:03"]

1. e4 {[%clk 0:02:59]}  c6 {[%clk 0:02:58]} 2. Nf3 {[%clk 0:02:58]}  d5 {[%clk 0:02:58]} 3. exd5 {[%clk 0:02:49]}  Qxd5 {[%clk 0:02:50]} 4. Nc3 {[%clk 0:02:46]}  Qd8 {[%clk 0:02:50]} 5. d4 {[%clk 0:02:46]}  Nf6 {[%clk 0:02:50]} 6. Bc4 {[%clk 0:02:44]}  Nbd7 {[%clk 0:02:33]} 7. O-O {[%clk 0:02:35]}  Nb6 {[%clk 0:02:30]} 8. Bb3 {[%clk 0:02:33]}  Bf5 {[%clk 0:02:25]} 9. Ne5 {[%clk 0:02:31]}  e6 {[%clk 0:02:25]} 10. Be3 {[%clk 0:02:22]}  Bd6 {[%clk 0:02:20]} 11. Qf3 {[%clk 0:02:21]}  O-O {[%clk 0:02:17]} 12. g4 {[%clk 0:02:19]}  Bxe5 {[%clk 0:02:10]} 13. gxf5 {[%clk 0:02:18]}  Bc7 {[%clk 0:02:01]} 14. Kh1 {[%clk 0:02:09]}  Qd6 {[%clk 0:01:56]} 15. Qh3 {[%clk 0:02:09]}  exf5 {[%clk 0:01:55]} 16. Bg5 {[%clk 0:02:08]}  Ng4 {[%clk 0:01:50]} 17. f3 {[%clk 0:02:04]}  Nf6 {[%clk 0:01:27]} 18. Ne2 {[%clk 0:02:02]}  Rfe8 {[%clk 0:01:11]} 19. Ng3 {[%clk 0:02:02]}  g6 {[%clk 0:01:06]} 20. Rg1 {[%clk 0:01:55]}  Kh8 {[%clk 0:00:26]} 21. Qh4 {[%clk 0:01:44]}  Nbd7 {[%clk 0:00:17]} 22. Bxf7 {[%clk 0:01:37]}  Rf8 {[%clk 0:00:16]} 23. Bxg6 {[%clk 0:01:37]}  Rg8 {[%clk 0:00:10]} 24. Nxf5 {[%clk 0:01:34]}  Qxh2+ {[%clk 0:00:09]} 25. Qxh2 {[%clk 0:01:34]}  Bxh2 {[%clk 0:00:06]} 26. Kxh2 {[%clk 0:01:35]}  Rxg6 {[%clk 0:00:05]} 27. Bh6 {[%clk 0:01:35]}  Rag8 {[%clk 0:00:02]} 28. Bf4 {[%clk 0:01:18]}  Nd5 {[%clk 0:00:02]} 29. Be5+ {[%clk 0:01:16]}  Nxe5 {[%clk 0:00:02]} 30. dxe5 {[%clk 0:01:17]}  Re6 {[%clk 0:00:02]} 31. Rxg8+ {[%clk 0:01:15]}  Kxg8 {[%clk 0:00:02]} 32. Re1 {[%clk 0:01:15]}  Kf8 {[%clk 0:00:02]} 33. Nd4 {[%clk 0:01:15]}  Re7 {[%clk 0:00:02]} 34. Kg3 {[%clk 0:01:12]}  Nc7 {[%clk 0:00:03]} 35. f4 {[%clk 0:01:12]}  Rg7+ {[%clk 0:00:03]} 36. Kf3 {[%clk 0:01:12]}  Rf7 {[%clk 0:00:02]} 37. f5 {[%clk 0:01:07]}  c5 {[%clk 0:00:02]} 38. Nb3 {[%clk 0:00:53]}  Rxf5+ {[%clk 0:00:02]} 39. Ke4 {[%clk 0:00:54]}  Rf2 {[%clk 0:00:02]} 40. Nxc5 {[%clk 0:00:51]}  Rxc2 {[%clk 0:00:02]} 41. Nd7+ {[%clk 0:00:49]}  Ke7 {[%clk 0:00:01]} 42. Nf6 {[%clk 0:00:50]}  Rxb2 {[%clk 0:00:02]} 43. Rh1 {[%clk 0:00:49]}  Ke6 {[%clk 0:00:02]} 44. Rh6 {[%clk 0:00:45]}  Rb4+ {[%clk 0:00:02]} 45. Kd3 {[%clk 0:00:43]}  Kxe5 {[%clk 0:00:03]} 46. Nd7+ {[%clk 0:00:43]}  Kf4 {[%clk 0:00:03]} 47. Rxh7 {[%clk 0:00:42]}  Nd5 {[%clk 0:00:03]} 48. Nc5 {[%clk 0:00:42]}  b6 {[%clk 0:00:03]} 49. Ne6+ {[%clk 0:00:37]}  Ke5 {[%clk 0:00:03]} 50. Nd8 {[%clk 0:00:37]}  Rd4+ {[%clk 0:00:03]} 51. Kc2 {[%clk 0:00:36]}  Nb4+ {[%clk 0:00:03]} 52. Kb3 {[%clk 0:00:37]}  Rxd8 {[%clk 0:00:02]} 53. Kxb4 {[%clk 0:00:37]}  a5+ {[%clk 0:00:03]} 54. Kb5 {[%clk 0:00:37]}  Rd2 {[%clk 0:00:04]} 55. a4 {[%clk 0:00:36]}  Rb2+ {[%clk 0:00:04]} 56. Ka6 {[%clk 0:00:36]}  Rb4 {[%clk 0:00:04]} 57. Rh5+ {[%clk 0:00:35]}  Kd6 {[%clk 0:00:04]} 58. Rh6+ {[%clk 0:00:29]}  Kc5 {[%clk 0:00:04]} 59. Rh5+ {[%clk 0:00:30]}  Kc6 {[%clk 0:00:04]} 60. Rh6+ {[%clk 0:00:30]}  Kc5 {[%clk 0:00:05]} 61. Rh5+ {[%clk 0:00:31]}  Kc4 {[%clk 0:00:05]} 62. Rh3 {[%clk 0:00:26]}  Rb3 {[%clk 0:00:04]} 63. Rh4+ {[%clk 0:00:26]}  Kc3 {[%clk 0:00:05]} 64. Rg4 {[%clk 0:00:25]}  Rb4 {[%clk 0:00:05]} 65. Rg3+ {[%clk 0:00:25]}  Kb2 {[%clk 0:00:05]} 66. Rf3 {[%clk 0:00:25]}  Rb3 {[%clk 0:00:05]} 67. Rf4 {[%clk 0:00:25]}  Ka3 {[%clk 0:00:05]} 68. Rh4 {[%clk 0:00:23]}  Rb4 {[%clk 0:00:05]} 69. Rh1 {[%clk 0:00:22]}  Kxa4 {[%clk 0:00:04]} 70. Ra1+ {[%clk 0:00:22]}  Kb3 {[%clk 0:00:05]} 71. Kb7 {[%clk 0:00:23]}  Kb2 {[%clk 0:00:04]} 72. Rh1 {[%clk 0:00:22]}  a4 {[%clk 0:00:04]} 73. Kc6 {[%clk 0:00:23]}  Rb3 {[%clk 0:00:03]} 74. Rh2+ {[%clk 0:00:24]}  Kc3 {[%clk 0:00:02]} 75. Kd5 {[%clk 0:00:25]}  Kb4 {[%clk 0:00:02]} 76. Rh3 {[%clk 0:00:26]}  Ka5 {[%clk 0:00:03]} 77. Rh8 {[%clk 0:00:25]}  b5 {[%clk 0:00:03]} 78. Ra8+ {[%clk 0:00:26]}  Kb4 {[%clk 0:00:04]} 79. Rb8 {[%clk 0:00:26]}  a3 {[%clk 0:00:04]} 80. Ra8 {[%clk 0:00:25]}  Rc3 {[%clk 0:00:04]} 81. Kd4 {[%clk 0:00:25]}  Kb3 {[%clk 0:00:04]} 82. Rh8 {[%clk 0:00:22]}  b4 {[%clk 0:00:04]} 83. Rh1 {[%clk 0:00:22]}  Rc2 {[%clk 0:00:04]} 84. Rb1+ {[%clk 0:00:22]}  Ka4 {[%clk 0:00:04]} 85. Kd3 {[%clk 0:00:22]}  Rc6 {[%clk 0:00:04]} 86. Rc1 {[%clk 0:00:21]}  Rxc1 {[%clk 0:00:03]} 0-1


[Site "https://www.chess.com"]